bitfinex-derivatives/quotes_ETHF0:USTF0_20250501
["timestamp","ask_amount","ask_price","bid_price","bid_amount"]
[1746108903769,1.08745,1838.7,1838.6,9.2829]
[1746108903973,8.90505,1838.7,1838.6,1.08751]
[1746108904174,7.8176,1838.7,1838.6,1.08751]
[1746108904874,3.2078,1838.7,1838.6,1.08751]
[1746108905075,3.2078,1838.7,1838.6,5.71221]
[1746108906075,4.29525,1838.7,1838.6,5.71221]
[1746108906275,8.93985,1838.7,1838.6,5.71221]
[1746108906477,7.8524,1838.7,1838.6,5.71221]
[1746108908072,7.70426,1839.1,1838.6,5.71221]
[1746108908073,4.9862,1839.1,1838.8,1.08739]
[1746108908271,7.8524,1839.2,1839.0,1.08723]
[1746108908572,8.93957,1839.2,1839.0,1.08724]
[1746108908776,4.6446,1839.1,1839.0,1.08724]
[1746108909675,0.01061845,1839.3,1839.2,1.08715]
[1746108910077,3.57990532,1839.3,1839.2,1.08715]
[1746108910374,3.57990532,1839.3,1839.2,41.88715]
[1746108911470,8.29540532,1839.3,1839.2,41.88715]
[1746108911872,3.57990532,1839.3,1839.2,41.88715]
[1746108913782,3.57990532,1839.3,1839.2,45.09495]
[1746108915585,3.2078,1839.6,1839.5,1.08698]
[1746108918077,3.2078,1839.6,1839.3,2.71762]
[1746108918281,3.2078,1839.6,1839.2,48.47767]
[1746108918482,3.2078,1839.6,1839.4,1.08699]
[1746108918672,3.2078,1839.6,1839.5,1.08698]
[1746108923688,4.29472,1839.6,1839.5,1.08698]
[1746108924184,4.29477,1839.6,1839.5,1.08698]
[1746108924384,3.2078,1839.6,1839.5,1.08698]
[1746108925087,3.2078,1839.8,1839.7,1.08686]
[1746108925887,4.2946,1839.8,1839.7,1.08686]
[1746108926084,3.2078,1839.8,1839.7,1.08686]
[1746108926683,4.2946,1839.8,1839.7,1.08686]
[1746108927383,3.2078,1839.8,1839.7,1.08686]
[1746108928084,4.2946,1839.8,1839.7,1.08686]
[1746108928284,3.2078,1839.8,1839.7,1.08686]
[1746108928488,4.2946,1839.8,1839.7,1.08686]
[1746108929686,3.2078,1839.8,1839.7,1.08686]
[1746108929893,3.2078,1840.0,1839.9,1.08668]
[1746108930992,4.29448,1840.0,1839.9,1.08668]
[1746108931491,4.29451,1840.0,1839.9,1.08674]
[1746108932692,3.2078,1840.0,1839.9,1.08674]
[1746108932888,77.38695,1840.4,1839.9,3.80349]
[1746108933198,3.2078,1840.4,1839.8,3.2078]
[1746108933390,1.08657,1840.2,1840.1,1.08657]
[1746108933893,4.29428,1840.4,1840.3,1.0865]
[1746108934198,1.08652,1840.3,1840.2,1.08652]
[1746108934896,4.29429,1840.4,1840.3,1.0865]
[1746108938797,1.0865,1840.3,1840.2,2.98843]
[1746108939093,1.0865,1840.3,1839.9,3.53201]
[1746108939094,1.08656,1840.2,1840.1,1.0866]
[1746108939289,4.29436,1840.2,1840.1,1.0866]
[1746108939686,3.2078,1840.2,1840.1,1.0866]
[1746108939990,4.29436,1840.2,1840.1,1.0866]
[1746108940488,7.13857374,1841.1,1840.9,1.08615]
[1746108940793,8.5617303,1841.0,1840.3,5.92406]
[1746108940995,3.2078,1840.8,1840.4,40.8]
[1746108941191,3.2078,1840.8,1840.5,1.08638]
[1746108941391,4.29405,1840.8,1840.5,1.08636]
[1746108941692,1.08628,1840.7,1840.4,41.88639]
[1746108941896,3.2078,1840.8,1840.4,41.88642]
[1746108942095,1.08637,1840.6,1840.4,1.08642]
[1746108942497,1.08631,1840.7,1840.5,1.08638]
[1746108942693,3.2078,1840.8,1840.3,40.8]
[1746108942886,8.60602,1840.8,1840.6,1.08627]
[1746108943098,1.08627,1840.7,1840.6,1.08627]
[1746108943303,8.60603,1840.8,1840.7,1.08627]
[1746108943503,7.5198,1840.8,1840.7,1.08627]
[1746108943996,3.2078,1840.8,1840.7,1.08627]
[1746108944598,4.29392,1841.0,1840.5,2.71596]
[1746108944897,4.312,1841.1,1841.0,1.08609]
[1746108945297,5.3539303,1841.2,1841.1,1.08603]
[1746108946399,6.4399003,1841.2,1841.1,1.08603]
[1746108946801,5.3539303,1841.2,1841.0,1.08606]
[1746108946992,6.4399303,1841.2,1841.1,1.08603]
[1746108947189,5.3539303,1841.2,1841.1,1.08603]
[1746108947401,4.29373,1841.3,1841.2,1.08597]
[1746108947602,4.29373,1841.3,1841.1,1.08599]
[1746108947803,1.08597,1841.2,1841.1,1.08599]
[1746108948398,4.29376,1841.3,1841.1,1.08599]
[1746108948602,4.29376,1841.3,1841.1,1.08598]
[1746108948802,3.2078,1841.3,1841.2,1.08597]
[1746108948999,1.08587,1841.4,1841.3,1.08591]
[1746108949198,1.08587,1841.4,1841.2,1.08594]
[1746108949498,3.2078,1841.3,1840.9,3.2078]
[1746108949692,5.42932,1841.4,1840.0,5.1099]
[1746108949693,3.2078,1841.0,1840.0,5.1099]
[1746108949891,3.2078,1840.8,1840.0,7.82653]
[1746108950093,1.0864,1840.5,1840.2,3.2078]
[1746108950299,1.08629,1840.7,1840.3,43.51621]
[1746108950605,1.08629,1840.7,1840.6,1.08633]
[1746108950900,4.29405,1840.8,1840.6,1.08633]
[1746108951201,3.2078,1840.8,1840.7,1.08627]
[1746108951400,3.2078,1840.8,1840.6,1.08627]
[1746108951597,3.2078,1840.8,1840.1,0.41193027]
[1746108951801,3.2078,1840.4,1840.0,1.9021]
[1746108952300,3.2078,1840.4,1840.0,2.98873]
[1746108952301,1.08658,1840.2,1840.0,2.98873]
[1746108952502,1.08662,1840.1,1840.0,2.98873]
[1746108953007,1.08675,1839.9,1839.8,1.08678]
[1746108953309,3.2078,1840.0,1839.8,15.5330089]
[1746108953506,4.29452,1840.0,1839.9,1.08674]
[1746108953805,1.08674,1839.9,1839.8,57.1485489]
[1746108954298,1.08674,1839.9,1839.8,55.2462489]
[1746108954910,1.08674,1839.9,1839.8,14.4462489]
[1746108956209,4.29452,1840.0,1839.8,14.4462489]
[1746108956403,1.08674,1839.9,1839.8,15.5330089]
[1746108956805,1.08674,1839.9,1839.8,14.4462489]
[1746108957211,1.08674,1839.9,1839.8,15.5330489]
[1746108957409,1.08674,1839.9,1839.7,60.76021113]
[1746108957410,1.0868,1839.8,1839.7,43.7892]
[1746108957910,1.0868,1839.8,1839.7,41.8868]
[1746108958110,4.29452,1840.0,1839.9,1.08674]
[1746108958316,4.311,1840.1,1839.8,1.08677]
[1746108958317,1.08678,1839.9,1839.8,1.08677]
[1746108959109,1.08673,1840.0,1839.9,1.08671]
[1746108959509,1.08676,1839.9,1839.8,1.08675]
[1746108960616,1.08673,1840.0,1839.9,1.08674]
[1746108961115,1.08675,1839.9,1839.8,1.08675]
[1746108961317,4.29452,1840.0,1839.7,42.7024]
[1746108961511,3.2078,1840.0,1839.7,45.41953]
[1746108961818,3.2078,1840.0,1839.9,1.08674]
[1746108962004,4.29448,1840.0,1839.9,1.08674]
[1746108962316,1.08674,1839.9,1839.8,1.08676]
[1746108962610,3.2078,1840.0,1839.8,1.08676]
[1746108962809,4.29451,1840.0,1839.9,1.08674]
[1746108963009,1.0868,1839.8,1839.7,1.9024]
[1746108963215,8.6066,1839.8,1839.7,1.9024]
[1746108963409,1.08702,1839.5,1839.4,1.08701]
[1746108964113,4.312,1839.8,1839.4,5.0]
[1746108964419,1.08698,1839.5,1839.4,1.08698]
[1746108964621,5.92495,1839.7,1839.3,42.7028]
[1746108964918,1.08703,1839.4,1839.3,1.9028]
[1746108965308,1.08715,1839.2,1839.1,7.21140845]
[1746108965510,1.08715,1839.2,1839.1,49.09858845]
[1746108965716,1.08715,1839.2,1839.1,41.88718]
[1746108965915,3.2078,1839.3,1839.0,1.9032]
[1746108966113,1.08721,1839.1,1839.0,1.9032]
[1746108966408,3.2078,1839.3,1839.0,40.8]
[1746108966609,0.43258789,1840.4,1839.2,2.71789]
[1746108966816,5.92435,1840.2,1839.5,3.2078]
[1746108967009,1.08684,1839.8,1839.5,3.2078]
[1746108967209,1.08684,1839.8,1839.7,1.08686]
[1746108967413,2.71703,1839.8,1839.4,1.08702]
[1746108967613,1.08703,1839.4,1839.3,0.8155]
[1746108967813,1.08709,1839.3,1839.1,1.08716]
[1746108968009,3.2078,1839.6,1839.4,1.08699]
[1746108968316,4.29462,1839.8,1839.6,1.08687]
[1746108968518,3.2078,1839.8,1839.7,1.08686]
[1746108969316,1.08671,1840.0,1839.9,1.08674]
[1746108969614,7.4898,1840.1,1840.0,1.08668]
[1746108970320,3.2078,1840.1,1840.0,1.08668]
[1746108970917,1.08662,1840.1,1840.0,1.08668]
[1746108971217,1.08668,1840.0,1839.6,5.92509]
[1746108971409,1.08668,1840.0,1839.9,1.08674]
[1746108971718,3.2078,1840.1,1839.7,1.08681]
[1746108971914,1.08686,1839.7,1839.6,1.0869]
[1746108972221,1.08692,1839.6,1839.2,2.71788]
[1746108972417,1.08698,1839.5,1839.3,1.08706]
[1746108972622,1.08711,1839.3,1839.0,42.7032]
[1746108972825,1.08711,1839.3,1839.1,1.08717]
[1746108973024,1.08709,1839.4,1839.2,1.08715]
[1746108973217,1.08702,1839.5,1839.0,45.42136]
[1746108973418,3.2078,1839.6,1839.2,2.71789]
[1746108973724,3.2078,1839.6,1839.4,1.08702]
[1746108973923,1.08698,1839.5,1839.4,1.08702]
[1746108974227,1.08698,1839.5,1839.3,1.08705]
[1746108974527,1.08708,1839.4,1839.2,1.08711]
[1746108975020,1.08701,1839.5,1839.3,1.08709]
[1746108975220,1.08703,1839.4,1839.2,1.08712]
[1746108975616,1.08702,1839.5,1839.3,1.08709]
[1746108975923,1.08702,1839.5,1839.1,13.13724845]
[1746108976219,1.08694,1839.6,1839.2,5.92569]
[1746108976426,3.2078,1839.8,1839.6,1.08687]
[1746108976628,1.08686,1839.7,1839.6,1.08687]
[1746108976922,3.2078,1839.8,1839.5,1.08696]
[1746108977122,3.2078,1839.6,1839.5,1.08696]
[1746108977323,4.29476,1839.6,1839.4,1.08699]
[1746108977819,3.2078,1839.8,1839.3,2.71772]
[1746108978025,1.0869,1839.7,1839.5,1.08692]
[1746108978226,1.08689,1839.7,1839.6,1.08692]
[1746108978619,3.2078,1839.8,1839.4,2.71756]
[1746108978927,1.08686,1839.7,1839.6,1.08688]
[1746108979127,5.92482,1839.8,1839.4,1.08698]
[1746108979325,1.0869,1839.7,1839.3,5.92551]
[1746108979522,1.08693,1839.6,1839.5,1.08694]
[1746108979721,5.92482,1839.8,1839.4,1.087]
[1746108979919,3.2078,1839.6,1839.5,1.08698]
[1746108980122,3.2078,1839.6,1839.4,1.08698]
[1746108980322,3.2078,1839.6,1839.5,1.08698]
[1746108980522,1.08696,1839.6,1839.5,1.08698]
[1746108980828,3.2078,1840.0,1839.9,1.08674]
[1746108981019,1.0866,1840.2,1839.8,2.71697]
[1746108981219,1.08662,1840.1,1840.0,1.08663]
[1746108981613,3.2078,1840.4,1840.0,8.2078]
[1746108981813,1.08663,1840.1,1839.9,1.08668]
[1746108982016,2.71632,1840.3,1839.9,1.08668]
[1746108982017,1.08668,1840.0,1839.9,1.08668]
[1746108982320,3.2078,1840.0,1839.9,1.08668]
[1746108982522,4.29448,1840.0,1839.9,1.08668]
[1746108982725,4.29448,1840.0,1839.9,41.88668]
[1746108983227,3.2078,1840.0,1839.9,41.88668]
[1746108983622,4.2944,1840.2,1840.1,1.08662]
[1746108983827,4.2944,1840.2,1839.9,40.8]
[1746108984124,3.2078,1840.4,1839.9,44.0078]
[1746108984321,5.3539303,1840.6,1840.4,1.0864]
[1746108984513,5.3539303,1840.6,1840.3,2.71626]
[1746108984719,5.3539303,1840.6,1840.5,1.08638]
[1746108984929,5.3539303,1840.6,1840.5,4.29418]
[1746108985122,3.6003303,1840.6,1840.5,13.57618]
[1746108985332,3.6003303,1841.1,1841.0,1.08609]
[1746108988225,3.6003303,1841.1,1841.0,9.29389]
[1746108988425,3.2078,1841.6,1841.0,8.2078]
[1746108988621,1.08581,1841.5,1841.3,1.08589]
[1746108988824,2.71479,1841.3,1840.4,5.92389]
[1746108989123,1.08618,1840.9,1840.6,3.2078]
[1746108989322,1.08616,1840.9,1840.7,40.8]
[1746108989728,1.08616,1840.9,1840.7,41.88622]
[1746108990032,1.08627,1840.7,1840.6,1.08632]
[1746108990629,1.08622,1840.8,1840.3,10.20402]
[1746108990832,4.29398,1840.9,1840.4,2.71603]
[1746108991125,1.08623,1840.8,1840.4,2.71611]
[1746108991325,3.2078,1841.2,1840.6,2.71572]
[1746108991629,1.08615,1840.9,1840.8,1.08619]
[1746108991823,1.08615,1840.9,1840.7,1.08622]
[1746108992026,1.08615,1840.9,1840.5,2.71597]
[1746108992027,4.29394,1841.0,1840.8,40.8]
[1746108992827,3.2078,1841.4,1840.8,40.8]
[1746108993016,1.08603,1841.1,1840.8,43.51551]
[1746108993420,1.08591,1841.3,1841.1,1.08598]
[1746108993619,4.29377,1841.2,1841.1,1.08598]
[1746108993828,3.2078,1841.2,1841.1,1.08598]
[1746108994026,4.29377,1841.2,1841.1,1.08598]
[1746108994224,1.08604,1841.1,1841.0,1.08604]
[1746108994625,1.08604,1841.1,1840.9,1.0861]
[1746108994828,1.08604,1841.1,1840.8,40.8]
[1746108994829,1.08604,1841.1,1841.0,1.08609]
[1746108995125,4.29379,1841.2,1841.1,1.08603]
[1746108995731,3.2078,1841.2,1841.1,1.08603]
[1746108996531,3.2078,1841.4,1841.3,1.08591]
[1746108996731,3.2078,1841.4,1841.2,1.08592]
[1746108997033,3.2078,1841.4,1841.1,1.08599]
[1746108997233,1.086,1841.2,1840.9,5.92316]
[1746108997531,3.2078,1841.2,1841.1,1.08599]
[1746108997733,4.29377,1841.2,1841.1,1.08599]
[1746108998123,3.2078,1841.2,1841.1,1.08599]
[1746108998725,4.29377,1841.2,1841.1,1.08599]
[1746108999740,3.2078,1841.2,1841.1,1.08599]
[1746109000233,10.17603,1841.7,1841.1,1.08603]
[1746109000429,1.08581,1841.5,1841.4,1.08585]
[1746109000636,1.08589,1841.4,1841.3,1.08589]
[1746109000935,3.2078,1841.4,1841.0,2.71521]
[1746109001237,1.08599,1841.2,1841.1,1.08598]
[1746109001538,1.08607,1841.1,1841.0,1.08606]
[1746109001729,5.92274,1841.2,1840.8,40.8]
[1746109002037,1.08615,1840.9,1840.8,41.6148]
[1746109002432,4.29393,1841.0,1840.9,1.08615]
[1746109002633,1.08615,1840.9,1840.8,0.8148]
[1746109003029,6.08615,1840.9,1840.8,0.8148]
[1746109003230,1.08627,1840.7,1840.6,1.08629]
[1746109003529,1.08636,1840.6,1840.5,1.08635]
[1746109003834,1.08654,1840.3,1840.2,1.08652]
[1746109004035,3.2078,1840.5,1840.2,1.08652]
[1746109004229,4.253,1840.6,1840.2,2.71641]
[1746109004530,1.08633,1840.6,1840.5,1.08638]
[1746109004941,3.2078,1840.7,1840.4,1.0864]
[1746109004942,1.0864,1840.5,1840.4,1.0864]
[1746109005236,3.2078,1840.7,1840.3,40.8]
[1746109005427,3.2078,1840.7,1840.3,43.51626]
[1746109005631,4.29411,1840.7,1840.6,1.08633]
[1746109006340,1.08636,1840.6,1840.5,1.08635]
[1746109006838,1.08644,1840.5,1840.4,1.08643]
[1746109007334,1.08662,1840.1,1840.0,2.7173]
[1746109007534,1.08662,1840.1,1840.0,3.80398]
[1746109007734,1.08662,1840.1,1840.0,1.08668]
[1746109007934,1.08662,1840.1,1840.0,1.08664]
[1746109008136,1.08663,1840.1,1840.0,1.08663]
[1746109008337,3.2078,1840.3,1839.9,1.9022]
[1746109008531,1.08661,1840.2,1840.0,1.08668]
[1746109008939,1.08662,1840.1,1840.0,1.08668]
[1746109009534,1.08662,1840.1,1839.9,2.9889]
[1746109010039,1.08662,1840.1,1840.0,1.08668]
[1746109010231,1.08661,1840.2,1840.0,1.08666]
[1746109010536,1.08651,1840.3,1839.9,7.82683]
[1746109010838,1.08647,1840.4,1840.2,1.08651]
[1746109011034,1.08647,1840.4,1840.3,1.0865]
[1746109011342,5.92362,1840.6,1840.2,1.08653]
[1746109011536,1.08646,1840.4,1840.3,1.0865]
[1746109011742,5.92363,1840.6,1840.2,1.08656]
[1746109011946,1.08668,1840.0,1839.9,5.11]
[1746109012741,1.08668,1840.0,1839.9,1.9022]
[1746109012944,3.2078,1840.2,1839.9,2.98891]
[1746109013138,1.08668,1840.0,1839.9,1.9022]
[1746109013337,1.08686,1839.7,1839.6,0.8153]
[1746109013642,2.71694,1839.9,1839.3,1.08707]
[1746109013643,1.087,1839.5,1839.3,1.08707]
[1746109013842,1.087,1839.5,1839.4,40.8]
[1746109014149,1.08698,1839.5,1839.4,40.8]
[1746109014637,1.08689,1839.7,1839.4,40.8]
[1746109014844,1.08693,1839.6,1839.5,1.08698]
[1746109015947,4.255,1840.0,1839.5,5.9251]
[1746109016140,1.08677,1839.9,1839.8,1.08676]
[1746109016444,1.08682,1839.8,1839.7,1.08681]
[1746109017344,1.08679,1839.9,1839.8,1.08679]
[1746109017533,4.255,1840.0,1839.9,1.08674]
[1746109017739,3.2078,1840.2,1840.0,1.08667]
[1746109017938,1.08667,1840.1,1840.0,1.08667]
[1746109018139,5.34155,1840.3,1840.2,1.08656]
[1746109018644,1.08662,1840.2,1840.0,1.08663]
[1746109018946,1.08662,1840.2,1840.1,1.08662]
[1746109019845,4.255,1840.3,1839.8,2.71699]
[1746109020143,1.0866,1840.2,1840.1,1.08661]
[1746109021039,1.08658,1840.2,1840.1,1.08657]
[1746109021239,1.0866,1840.2,1840.1,1.08659]
[1746109021547,5.34153,1840.3,1840.2,1.08656]
[1746109021749,1.08661,1840.2,1840.1,1.08658]
[1746109024550,3.2078,1840.6,1840.1,5.92436]
[1746109024753,1.08644,1840.5,1840.4,1.0864]
[1746109024951,1.08649,1840.4,1840.3,1.08646]
[1746109025644,4.29429,1840.4,1840.3,1.08646]
[1746109026851,3.2078,1840.4,1840.3,1.08646]
[1746109027359,1.08638,1840.6,1840.5,1.08638]
[1746109027652,1.0864,1840.5,1840.4,1.08639]
[1746109027853,1.0864,1840.5,1840.4,2.98809]
[1746109028454,2.71597,1840.5,1840.0,5.92437]
[1746109028653,1.0866,1840.2,1840.1,1.08657]
[1746109028956,1.08655,1840.3,1840.2,1.08654]
[1746109029450,1.0865,1840.4,1840.3,1.08649]
[1746109029951,1.08654,1840.3,1840.2,1.08652]
[1746109030147,1.0866,1840.2,1840.1,1.08658]
[1746109030858,3.2078,1840.3,1840.1,1.08658]
[1746109031051,4.29433,1840.3,1840.2,1.08656]
[1746109031246,1.08656,1840.2,1840.1,1.08657]
[1746109031446,8.52635,1840.3,1840.1,1.08657]
[1746109031653,8.52635,1840.3,1840.2,1.08656]
[1746109032854,4.232,1840.3,1840.2,1.08656]
[1746109034749,4.29419,1840.5,1840.4,1.08644]
[1746109034960,3.2078,1840.5,1840.4,1.08644]
[1746109035657,4.29418,1840.5,1840.4,1.08644]
[1746109036049,1.08638,1840.5,1840.4,1.08644]
[1746109036354,1.08637,1840.6,1840.5,1.08635]
[1746109036554,67.059,1840.8,1840.7,1.08627]
[1746109036751,1.08622,1840.8,1840.5,5.92376]
[1746109036954,4.232,1840.9,1840.5,3.2078]
[1746109037257,1.08638,1840.6,1840.5,1.08637]
[1746109037455,1.08638,1840.6,1840.5,41.88637]
[1746109037760,1.08624,1840.8,1840.7,1.08623]
[1746109038058,7.4398,1840.9,1840.8,1.08621]
[1746109038251,5.92291,1841.1,1840.8,1.08616]
[1746109038449,5.92291,1841.1,1840.6,5.9236]
[1746109038450,1.08611,1841.0,1840.7,2.7156]
[1746109038648,4.29387,1841.1,1841.0,1.08609]
[1746109039161,1.08611,1841.0,1840.9,1.0861]
[1746109039359,4.29388,1841.1,1841.0,1.08609]
[1746109039657,3.2078,1841.1,1841.0,1.08609]
[1746109040059,4.29383,1841.1,1841.0,1.08609]
[1746109040754,3.2078,1841.1,1841.0,1.08609]
[1746109041355,3.57446426,1841.3,1841.0,9.29389]
[1746109041557,3.57446426,1841.3,1841.2,4.29377]
[1746109042559,3.57446426,1841.3,1841.2,1.08597]
[1746109042855,3.2078,1841.6,1841.3,1.0859]
[1746109043057,1.08579,1841.5,1841.3,1.08586]
[1746109043454,1.08585,1841.4,1841.3,1.08586]
[1746109043659,1.08581,1841.5,1841.4,1.08584]
[1746109043860,4.29358,1841.6,1841.4,1.08584]
[1746109044055,1.08579,1841.5,1841.4,1.08584]
[1746109044360,1.08579,1841.5,1841.1,5.92286]
[1746109044361,1.08579,1841.5,1841.3,1.08587]
[1746109044560,1.08585,1841.5,1841.3,1.08587]
[1746109045265,3.2078,1841.6,1841.3,1.08587]
[1746109045456,1.08584,1841.5,1841.3,1.08587]
[1746109045658,1.08584,1841.5,1841.4,1.08585]
[1746109046267,3.2078,1841.6,1841.2,2.71494]
[1746109046562,3.2078,1841.6,1841.5,1.08579]
[1746109046964,4.29354,1841.6,1841.5,1.08579]
[1746109047568,3.2078,1841.6,1841.5,1.08579]
[1746109047956,3.57446426,1841.8,1841.7,1.08568]
[1746109048562,3.57446426,1841.8,1841.4,2.71452]
[1746109048563,1.08564,1841.8,1841.4,2.71452]
[1746109048767,1.08564,1841.8,1841.7,1.08568]
[1746109048970,1.0856,1841.9,1841.7,1.08568]
[1746109049169,3.57446426,1842.3,1841.8,43.51394]
[1746109049464,3.57446426,1842.3,1842.2,1.08538]
[1746109052665,3.57446426,1842.3,1842.1,1.8996]
[1746109052870,3.57446426,1842.3,1842.1,0.8142]
[1746109053169,3.57446426,1842.3,1842.2,1.08538]
[1746109054275,1.08525,1842.5,1842.1,1.22765761]
[1746109054471,1.08525,1842.5,1842.3,1.08527]
[1746109054671,1.08525,1842.5,1842.1,1.22765761]
[1746109054874,1.08525,1842.5,1842.3,1.0853]
[1746109055074,4.29305,1842.5,1842.3,1.0853]
[1746109055468,3.2078,1842.5,1842.3,1.0853]
[1746109055664,1.08532,1842.3,1842.2,40.8]
[1746109055976,1.08538,1842.2,1842.1,0.8142]
[1746109056863,5.1075,1842.3,1842.2,1.08538]
[1746109057170,1.08544,1842.2,1842.1,1.08542]
[1746109057473,5.2913,1842.4,1842.3,1.08532]
[1746109057671,1.08536,1842.3,1842.2,1.08534]
[1746109058074,1.08538,1842.2,1842.1,1.0854]
[1746109058678,4.29318,1842.2,1842.1,1.0854]
[1746109058979,1.08543,1842.2,1842.1,1.08544]
[1746109059182,1.08545,1842.1,1842.0,1.08545]
[1746109059478,4.206,1842.4,1841.8,43.51392]
[1746109059779,1.08541,1842.2,1842.1,1.0854]
[1746109060078,1.08545,1842.1,1842.0,1.08545]
[1746109060969,4.29323,1842.2,1842.1,1.08544]
[1746109061170,1.08543,1842.2,1842.1,1.08544]
[1746109061574,3.79881,1842.5,1842.4,1.08526]
[1746109061777,3.79881,1842.5,1842.4,3.2078]
[1746109061979,1.89931,1842.5,1842.4,3.2078]
[1746109062477,0.8141,1842.5,1842.4,3.2078]
[1746109062783,0.8141,1842.5,1842.4,4.29306]
[1746109064072,1.89931,1842.5,1842.4,3.2078]
[1746109064270,1.89931,1842.5,1842.0,2.71374]
[1746109064271,1.08534,1842.3,1842.1,1.08539]
[1746109064480,1.08529,1842.4,1842.0,5.92155]
[1746109064784,5.0191,1842.5,1842.2,1.08538]
[1746109064972,6.10435,1842.5,1842.4,1.08526]
[1746109065378,5.0191,1842.5,1842.4,1.08526]
[1746109065580,6.10433,1842.5,1842.4,1.08526]
[1746109065874,6.10433,1842.5,1842.0,5.92155]
[1746109065875,5.0191,1842.5,1842.0,5.92155]
[1746109066080,1.08531,1842.4,1842.3,1.08532]
[1746109066582,9.31215,1842.5,1842.4,1.08526]
[1746109066978,5.10715,1842.5,1842.4,1.08526]
[1746109068181,0.8141,1842.5,1842.4,1.08526]
[1746109068587,1.89931,1842.5,1842.4,1.08526]
[1746109069378,0.8141,1842.5,1842.4,1.08526]
[1746109069782,2.9846,1842.6,1842.5,1.08521]
[1746109069987,1.08524,1842.5,1842.4,1.08522]
[1746109070186,1.08531,1842.4,1842.3,1.08528]
[1746109070485,1.08542,1842.2,1842.1,1.08538]
[1746109071189,4.29308,1842.4,1842.3,1.08532]
[1746109071686,3.2078,1842.4,1842.2,1.08534]
[1746109071986,1.08536,1842.3,1842.2,1.08532]
[1746109073087,6.19253,1842.5,1842.4,1.08526]
[1746109073390,1.08523,1842.5,1842.4,1.08526]
[1746109073784,1.08534,1842.4,1842.3,1.08529]
[1746109074183,1.08543,1842.2,1842.1,1.0854]
[1746109074592,1.08551,1842.1,1842.0,1.08547]
[1746109075090,1.08543,1842.2,1842.1,1.0854]
[1746109076186,4.29318,1842.3,1842.2,1.08538]
[1746109076385,1.08544,1842.2,1842.1,1.0854]
[1746109077686,3.2078,1842.3,1842.2,1.08538]
[1746109077887,1.08526,1842.5,1842.4,1.08522]
[1746109078191,11.21141,1842.6,1842.5,1.08521]
[1746109078492,9.31201,1842.6,1842.5,1.08521]
[1746109078695,1.08524,1842.5,1842.4,1.08521]
[1746109078885,8.2268,1842.6,1842.1,2.71359]
[1746109078886,1.08532,1842.4,1842.3,1.08528]
[1746109080301,1.08525,1842.5,1842.4,1.08521]
[1746109080592,1.08532,1842.4,1842.3,1.08528]
[1746109080789,1.08537,1842.3,1842.2,1.08533]
[1746109081196,1.08556,1842.0,1841.9,1.08551]
[1746109081591,1.08549,1842.1,1842.0,1.08544]
[1746109082091,1.08544,1842.2,1842.1,1.08539]
[1746109082295,1.08537,1842.3,1842.2,1.08532]
[1746109083385,1.08537,1842.3,1842.2,1.08533]
[1746109083796,1.08531,1842.4,1842.3,1.08527]
[1746109084495,1.08525,1842.5,1842.4,1.08521]
[1746109085192,1.08533,1842.4,1842.3,1.08528]
[1746109085698,1.08538,1842.3,1842.2,1.08533]
[1746109086000,1.08544,1842.2,1842.1,1.08539]
[1746109086695,1.08553,1842.0,1841.9,1.08549]
[1746109087087,1.08548,1842.1,1842.0,1.08544]
[1746109087488,1.08549,1842.1,1842.0,1.08545]
[1746109089696,6.73556,1842.2,1841.8,41.19855111]
[1746109089895,1.08556,1842.0,1841.9,1.08551]
[1746109091597,1.08556,1842.0,1841.8,41.19855111]
[1746109091598,1.08556,1841.9,1841.8,41.8856]
[1746109091898,1.08568,1841.7,1841.6,11.50491845]
[1746109092409,1.08568,1841.7,1841.6,52.30491845]
[1746109092599,1.08568,1841.7,1841.6,49.09711845]
[1746109092796,10.27268,1841.7,1841.6,4.56148541]
[1746109093003,10.27268,1841.7,1840.9,21.66937336]
[1746109093004,3.2078,1841.0,1840.4,30.87419771]
[1746109093195,9.02,1841.4,1839.1,3.2078]
[1746109093196,5.43224,1840.4,1839.1,3.2078]
[1746109093396,9.96404301,1839.9,1839.5,32.5854]
[1746109093595,1.08671,1840.0,1839.8,14.0712]
[1746109093801,5.436,1840.0,1839.8,7.3948]
[1746109093996,1.0865,1840.3,1839.8,50.8436]
[1746109094196,1.08662,1840.1,1840.0,3.2078]
[1746109094396,1.08676,1839.9,1839.8,3.2078]
[1746109094597,2.71612,1840.4,1839.9,43.4488]
[1746109094792,1.08668,1840.0,1839.9,43.4488]
[1746109094999,1.08674,1839.9,1839.8,3.2078]
[1746109095305,1.0868,1839.8,1839.7,39.80741933]
[1746109095707,1.0868,1839.8,1839.7,43.01521933]
[1746109095901,1.0868,1839.8,1839.7,39.80741933]
[1746109096602,1.0868,1839.8,1839.7,83.25621933]
[1746109097007,1.77985149,1839.8,1839.7,43.4488]
[1746109097895,1.08686,1839.7,1839.6,3.2078]
[1746109098100,1.77987149,1839.8,1839.7,43.4488]
[1746109099209,1.08682,1839.8,1839.7,43.4488]
[1746109101311,1.08682,1839.8,1839.7,14.0712]
[1746109101508,1.0868,1839.8,1839.7,3.2078]
[1746109101707,1.0868,1839.8,1839.3,4.191]
[1746109101708,1.0869,1839.7,1839.6,43.4488]
[1746109102007,2.98894,1839.9,1839.8,43.4488]
[1746109102408,3.44985501,1839.9,1839.8,43.4488]
[1746109102908,8.76867457,1839.9,1839.8,43.4488]